fUST/lending_fUST_20250419
["ID","MTS","AMOUNT","RATE_DAILY","PERIOD"]
[358393558,1745056248021,-5709.5,0.00021917,2]
[358393559,1745056248031,-500.0,0.00021917,2]
[358393560,1745056248041,-500.0,0.00021917,2]
[358393561,1745056248051,-500.0,0.00021917,2]
[358393562,1745056248062,-500.0,0.00021917,2]
[358393563,1745056248072,-167.48185052,0.00021917,2]
[358393564,1745056248082,-500.0,0.00021917,2]
[358393565,1745056248091,-1111.94,0.00021917,2]
[358393566,1745056248101,-812.82,0.00021917,2]
[358393567,1745056248111,-500.0,0.00021917,2]
[358393568,1745056248121,-500.0,0.00021917,2]
[358393569,1745056248131,-500.0,0.00021917,2]
[358393570,1745056248141,-500.0,0.00021917,2]
[358393571,1745056248151,-500.0,0.00021917,2]
[358393572,1745056248160,-1815.29,0.00021917,2]
[358393573,1745056248170,-500.0,0.00021917,2]
[358393574,1745056248180,-500.0,0.00021917,2]
[358393575,1745056248190,-789.02,0.00021917,2]
[358393576,1745056248200,-521.12257341,0.00021917,2]
[358393577,1745056248210,-524.23,0.00021917,2]
[358393578,1745056248220,-500.0,0.00021917,2]
[358393579,1745056248231,-500.0,0.00021917,2]
[358393580,1745056248242,-519.77,0.00021917,2]
[358393581,1745056248254,-500.0,0.00021917,2]
[358393582,1745056248265,-500.0,0.00021917,2]
[358393583,1745056248274,-925.42,0.00021917,2]
[358393584,1745056248284,-18693.29,0.00021917,2]
[358393585,1745056248294,-500.0,0.00021917,2]
[358393586,1745056248304,-500.0,0.00021917,2]
[358393587,1745056248314,-500.0,0.00021917,2]
[358393588,1745056248323,-500.0,0.00021917,2]
[358393589,1745056248334,-500.0,0.00021917,2]
[358393590,1745056248344,-500.0,0.00021917,2]
[358393591,1745056248353,-500.0,0.00021917,2]
[358393592,1745056248363,-604.52,0.00021917,2]
[358393593,1745056248373,-967.04,0.00021917,2]
[358393594,1745056248383,-500.0,0.00021917,2]
[358393595,1745056248392,-500.0,0.00021917,2]
[358393596,1745056248402,-500.0,0.00021917,2]
[358393597,1745056248412,-500.0,0.00021917,2]
[358393598,1745056248423,-500.0,0.00021917,2]
[358393599,1745056248433,-500.0,0.00021917,2]
[358393600,1745056248443,-500.0,0.00021917,2]
[358393601,1745056248453,-1240.45,0.00021917,2]
[358393602,1745056248464,-6764.06,0.00021917,2]
[358393603,1745056248474,-500.0,0.00021917,2]
[358393604,1745056248484,-500.0,0.00021917,2]
[358393605,1745056248494,-500.0,0.00021917,2]
[358393606,1745056248504,-534.49,0.00021917,2]
[358393607,1745056248514,-555.18,0.00021917,2]
[358393608,1745056248534,-500.0,0.00021917,2]
[358393609,1745056248545,-500.0,0.00021917,2]
[358393610,1745056248556,-500.0,0.00021917,2]
[358393611,1745056248566,-500.0,0.00021917,2]
[358393612,1745056248576,-501.89199746,0.00021917,2]
[358393613,1745056248586,-500.0,0.00021917,2]
[358393614,1745056248596,-500.0,0.00021917,2]
[358393615,1745056248606,-786.61,0.00021917,2]
[358393616,1745056248616,-500.0,0.00021917,2]
[358393617,1745056248627,-547.97435345,0.00021917,2]
[358393618,1745056248637,-762.24,0.00021917,2]
[358393619,1745056248647,-1001.59,0.00021917,2]
[358393620,1745056248658,-500.0,0.00021917,2]
[358393621,1745056248765,-1034.38,0.00021917,2]
[358393622,1745056248774,-216.62398249,0.00021917,2]
[358393623,1745056248784,-500.0,0.00021917,2]
[358393624,1745056248793,-500.0,0.00021917,2]
[358393625,1745056248803,-500.0,0.00021917,2]
[358393626,1745056248813,-500.93166127,0.00021917,2]
[358393627,1745056248823,-500.0,0.00021917,2]
[358393628,1745056248833,-673.61,0.00021917,2]
[358393629,1745056248843,-500.0,0.00021917,2]
[358393630,1745056248853,-500.0,0.00021917,2]
[358393631,1745056248862,-902.7,0.00021917,2]
[358393632,1745056248871,-500.0,0.00021917,2]
[358393633,1745056248881,-500.0,0.00021917,2]
[358393634,1745056248891,-500.0,0.00021917,2]
[358393635,1745056248901,-500.0,0.00021917,2]
[358393636,1745056248911,-500.0,0.00021917,2]
[358393637,1745056248921,-402.0,0.00021947,2]
[358393638,1745056248930,-500.0,0.00021973,2]
[358393639,1745056248939,-500.0,0.00021973,2]
[358393640,1745056248949,-500.0,0.00021973,2]
[358393641,1745056248959,-500.0,0.00021973,2]
[358393642,1745056248969,-500.0,0.00021973,2]
[358393643,1745056248979,-500.0,0.00021973,2]
[358393644,1745056248989,-500.0,0.00021973,2]
[358393645,1745056248999,-500.0,0.00021973,2]
[358393646,1745056249009,-500.0,0.00021973,2]
[358393647,1745056249019,-300.0,0.00021973,2]
[358393648,1745056249028,-500.0,0.00022,2]
[358393649,1745056249038,-151.0,0.00022054,2]
[358393650,1745056249048,-151.0,0.00022054,2]
[358393651,1745056249057,-34370.27724107,0.000221,2]
[358393652,1745056249067,-200.0,0.000221,2]
[358393653,1745056249077,-633.0,0.000221,2]
[358393654,1745056249086,-500.0,0.0002215,2]
[358393655,1745056249095,-513.64687281,0.00022173,2]
[358393656,1745056249104,-500.0,0.00022173,2]
[358393657,1745056249114,-500.0,0.00022173,2]
[358393658,1745056249124,-160.27896273,0.00022173,2]
[358393659,1745056249133,-500.0,0.00022173,2]
[358393660,1745056249143,-196.53884749,0.00022191,2]
[358393661,1745056249153,-151.0,0.00022191,2]
[358393662,1745056249162,-500.0,0.00022191,2]
[358393663,1745056249172,-500.0,0.00022191,2]
[358393664,1745056249182,-972.69,0.00022191,2]
[358393665,1745056249192,-500.0,0.00022191,2]
[358393666,1745056249202,-500.0,0.00022191,2]
[358393667,1745056249212,-500.0,0.00022191,2]
[358393668,1745056249222,-500.0,0.00022191,2]
[358393669,1745056249232,-500.0,0.00022191,2]
[358393670,1745056249244,-500.0,0.00022191,2]
[358393671,1745056249253,-500.0,0.00022191,2]
[358393672,1745056249263,-500.0,0.00022191,2]
[358393673,1745056249273,-500.0,0.00022191,2]
[358393674,1745056249282,-500.0,0.00022191,2]
[358393675,1745056249292,-500.0,0.00022191,2]
[358393676,1745056249302,-500.0,0.00022191,2]
[358393677,1745056249312,-709.96,0.00022191,2]
[358393678,1745056249321,-504.26,0.00022191,2]
[358393679,1745056249331,-500.0,0.00022191,2]
[358393680,1745056249341,-791.43,0.00022191,2]
[358393681,1745056249350,-500.0,0.00022191,2]
[358393682,1745056249360,-151.0,0.00022191,7]
[358393683,1745056249370,-611.38,0.00022191,2]
[358393684,1745056249380,-500.0,0.00022191,2]
[358393685,1745056249390,-500.0,0.00022191,2]
[358393686,1745056249399,-500.0,0.00022191,2]
[358393687,1745056249409,-612.3,0.00022191,2]
[358393689,1745056249418,-500.0,0.00022191,2]
[358393690,1745056249427,-500.0,0.00022191,2]
[358393691,1745056249437,-500.0,0.00022191,2]
[358393692,1745056249447,-517.61,0.00022191,2]
[358393693,1745056249457,-500.0,0.00022191,2]
[358393694,1745056249466,-500.0,0.00022191,2]
[358393695,1745056249476,-500.0,0.00022191,2]
[358393696,1745056249486,-703.9,0.00022191,2]
[358393697,1745056249496,-500.0,0.00022191,2]
[358393698,1745056249506,-500.0,0.00022191,2]
[358393699,1745056249516,-500.0,0.00022191,2]
[358393700,1745056249525,-1985.79,0.00022191,2]
[358393701,1745056249535,-500.0,0.00022191,2]
[358393702,1745056249544,-500.0,0.00022191,2]
[358393704,1745056249554,-500.0,0.00022191,2]
[358393706,1745056249563,-500.0,0.00022191,2]
[358393708,1745056249572,-346.36625599,0.00022191,2]
[358393711,1745056249593,-409.09374401,0.00022191,2]
[358393713,1745056249602,-500.0,0.00022191,2]
[358393715,1745056249612,-500.0,0.00022191,2]
[358393717,1745056249621,-548.21,0.00022191,2]
[358393719,1745056249631,-500.0,0.00022191,2]
[358393721,1745056249641,-500.0,0.00022191,2]
[358393723,1745056249651,-514.65149801,0.00022191,2]
[358393725,1745056249660,-500.0,0.00022191,2]
[358393727,1745056249670,-890.89,0.00022191,2]
[358393729,1745056249680,-293.56256716,0.00022191,2]
[358393731,1745056249690,-293.36192539,0.00022191,2]
[358393733,1745056249699,-527.1,0.00022191,2]
[358393735,1745056249709,-592.75,0.00022191,2]
[358393737,1745056249718,-500.0,0.00022191,2]
[358393739,1745056249729,-151.0,0.00022191,7]
[358393741,1745056249738,-500.0,0.00022191,2]
[358393743,1745056249748,-151.0,0.00022191,7]
[358393745,1745056249758,-213.294851,0.00022191,7]
[358393747,1745056249768,-500.0,0.00022191,2]
[358393749,1745056249777,-624.51,0.00022191,2]
[358393751,1745056249787,-500.0,0.00022191,2]
[358393753,1745056249796,-500.0,0.00022191,2]
[358393755,1745056249806,-562.74,0.00022191,2]
[358393757,1745056249816,-500.0,0.00022191,2]
[358393759,1745056249825,-1176.84,0.00022191,2]
[358393760,1745056249835,-370.85578069,0.00022191,2]
[358394005,1745057432417,-500.0,0.00019725,2]
[358394007,1745057432427,-440.12519229,0.0002,2]
[358394009,1745057432437,-419.375,0.00020716,2]
[358394011,1745057432447,-300.0,0.00021715,2]
[358394013,1745057432456,-252.00619971,0.00021716,2]
[358394015,1745057432466,-297.48761424,0.00021716,2]
[358394017,1745057432475,-500.0,0.00021716,2]
[358394019,1745057432485,-375.93261878,0.00021716,2]
[358394021,1745057432495,-500.0,0.00021716,2]
[358394023,1745057432505,-500.0,0.00021716,2]
[358394025,1745057432514,-500.0,0.00021716,2]
[358394027,1745057432524,-434.41879303,0.00021716,2]
[358394029,1745057432534,-500.0,0.00021716,2]
[358394031,1745057432544,-300.0,0.00021716,2]
[358394034,1745057432554,-89934.93806158,0.00021717,2]
[358394036,1745057432564,-1499.91831598,0.0002179,2]
[358394038,1745057432574,-675.0,0.0002189,15]
[358394040,1745057432584,-156.905233,0.000219,2]
[358394042,1745057432595,-1731.11266742,0.000219,3]
[358394044,1745057432605,-207.4,0.00021904,2]
[358394046,1745057432614,-839.40992179,0.00021905,2]
[358394047,1745057432623,-160.0,0.00021905,2]
[358394049,1745057432635,-420.4931809,0.00021906,2]
[358394051,1745057432644,-50000.0,0.00021906,2]
[358394053,1745057432654,-342.22,0.00021917,2]
[358394054,1745057432664,-500.0,0.00021917,2]
[358394055,1745057432674,-502.03335535,0.00021917,2]
[358394056,1745057432684,-500.0,0.00021917,2]
[358394057,1745057432694,-501.38817897,0.00021917,2]
[358394058,1745057432704,-211.75958744,0.00021917,2]
[358394059,1745057432713,-535.71539511,0.00021917,2]
[358394060,1745057432723,-500.0,0.00021917,2]
[358394061,1745057432733,-500.0,0.00021917,2]
[358394062,1745057432743,-500.0,0.00021917,2]
[358394063,1745057432753,-500.0,0.00021917,2]
[358394064,1745057432762,-167.57864183,0.00021917,2]
[358394065,1745057432772,-500.0,0.00021917,2]
[358394066,1745057432782,-500.0,0.00021917,2]
[358394067,1745057432792,-500.0,0.00021917,2]
[358394068,1745057432806,-500.0,0.00021917,2]
[358394069,1745057432816,-500.0,0.00021917,2]
[358394070,1745057432825,-500.0,0.00021917,2]
[358394071,1745057432836,-1078.77,0.00021917,2]
[358394072,1745057432848,-560.83,0.00021917,2]
[358394073,1745057432858,-500.0,0.00021917,2]
[358394074,1745057432869,-500.0,0.00021917,2]
[358394075,1745057432879,-500.0,0.00021917,2]
[358394076,1745057432890,-500.0,0.00021917,2]
[358394077,1745057432901,-500.0,0.00021917,2]
[358394078,1745057432911,-500.0,0.00021917,2]
[358394079,1745057432921,-500.0,0.00021917,2]
[358394080,1745057432931,-500.0,0.00021917,2]
[358394081,1745057432940,-1030.52,0.00021917,2]
[358394082,1745057432950,-633.03,0.00021917,2]
[358394083,1745057432960,-584.73,0.00021917,2]
[358394084,1745057432969,-500.0,0.00021917,2]
[358394085,1745057432979,-500.0,0.00021917,2]
[358394086,1745057432989,-500.0,0.00021917,2]
[358394087,1745057432999,-500.0,0.00021917,2]
[358394088,1745057433010,-500.0,0.00021917,2]
[358394089,1745057433020,-542.67,0.00021917,2]
[358394090,1745057433030,-500.0,0.00021917,2]
[358394091,1745057433040,-500.0,0.00021917,2]
[358394092,1745057433051,-500.0,0.00021917,2]
[358394093,1745057433061,-671.59,0.00021917,2]
[358394094,1745057433071,-500.0,0.00021917,2]
[358394095,1745057433082,-500.0,0.00021917,2]
[358394096,1745057433092,-500.0,0.00021917,2]
[358394097,1745057433102,-500.0,0.00021917,2]
[358394098,1745057433112,-585.0634945,0.00021917,2]
[358394099,1745057433121,-500.0,0.00021917,2]
[358394100,1745057433132,-500.0,0.00021917,2]
[358394101,1745057433143,-500.0,0.00021917,2]
[358394102,1745057433153,-500.0,0.00021917,2]
[358394103,1745057433163,-500.0,0.00021917,2]
[358394104,1745057433173,-500.0,0.00021917,2]
[358394105,1745057433183,-500.0,0.00021917,2]
[358394106,1745057433193,-500.0,0.00021917,2]
[358394107,1745057433203,-500.0,0.00021917,2]
[358394108,1745057433212,-500.0,0.00021917,2]
[358394109,1745057433222,-574.22013557,0.00021917,2]
[358394110,1745057433233,-500.0,0.00021917,2]
[358394111,1745057433243,-691.78,0.00021917,2]
[358394112,1745057433253,-500.0,0.00021917,2]
[358394113,1745057433262,-904.97,0.00021917,2]
[358394114,1745057433272,-500.0,0.00021917,2]
[358394115,1745057433282,-500.0,0.00021917,2]
[358394116,1745057433292,-500.0,0.00021917,2]
[358394117,1745057433302,-454.4308182,0.00021917,2]
[358394118,1745057433316,-45.5691818,0.00021917,2]
[358394119,1745057433326,-500.0,0.00021917,2]
[358394120,1745057433336,-500.0,0.00021917,2]
[358394121,1745057433345,-500.0,0.00021917,2]
[358394122,1745057433355,-1820.31,0.00021917,2]
[358394123,1745057433365,-500.0,0.00021917,2]
[358394124,1745057433375,-692.5,0.00021917,2]
[358394125,1745057433386,-500.0,0.00021917,2]
[358394126,1745057433397,-500.0,0.00021917,2]
[358394127,1745057433407,-500.0,0.00021917,2]
[358394128,1745057433417,-500.0,0.00021917,2]
[358394129,1745057433427,-500.0,0.00021917,2]
[358394130,1745057433437,-502.52,0.00021917,2]
[358394131,1745057433447,-500.0,0.00021917,2]
[358394132,1745057433457,-834.11,0.00021917,2]
[358394133,1745057433467,-500.0,0.00021917,2]
[358394134,1745057433477,-500.0,0.00021917,2]
[358394135,1745057433487,-891.72,0.00021917,2]
[358394136,1745057433497,-500.0,0.00021917,2]
[358394137,1745057433507,-500.0,0.00021917,2]
[358394138,1745057433517,-543.35,0.00021917,2]
[358394139,1745057433527,-158.24046966,0.00021917,2]
[358394140,1745057433537,-500.0,0.00021917,2]
[358394141,1745057433546,-500.0,0.00021917,2]
[358394142,1745057433556,-500.0,0.00021917,2]
[358394143,1745057433566,-500.0,0.00021917,2]
[358394144,1745057433576,-503.79,0.00021917,2]
[358394145,1745057433586,-515.85,0.00021917,2]
[358394146,1745057433596,-500.0,0.00021917,2]
[358394147,1745057433606,-539.11,0.00021917,2]
[358394148,1745057433616,-500.0,0.00021917,2]
[358394149,1745057433625,-405.23320625,0.00021917,2]
[358394150,1745057433635,-500.0,0.00021917,2]
[358394151,1745057433645,-500.0,0.00021917,2]
[358394152,1745057433655,-500.0,0.00021917,2]
[358394153,1745057433664,-875.83,0.00021917,2]
[358394154,1745057433674,-2842.68,0.00021917,2]
[358394155,1745057433684,-500.0,0.00021917,2]
[358394156,1745057433694,-500.0,0.00021917,2]
[358394157,1745057433704,-500.0,0.00021917,2]
[358394158,1745057433714,-500.0,0.00021917,2]
[358394159,1745057433724,-922.38,0.00021917,2]
[358394160,1745057433740,-500.0,0.00021917,2]
[358394161,1745057433755,-500.0,0.00021917,2]
[358394162,1745057433766,-500.0,0.00021917,2]
[358394163,1745057433777,-988.13,0.00021917,2]
[358394164,1745057433800,-500.0,0.00021917,2]
[358394165,1745057433817,-1041.2,0.00021917,2]
[358394166,1745057433832,-500.0,0.00021917,2]
[358394167,1745057433848,-534.16,0.00021917,2]
[358394168,1745057433862,-500.0,0.00021917,2]
[358394169,1745057433876,-694.46,0.00021917,2]
[358394170,1745057433889,-500.0,0.00021917,2]
[358394171,1745057433905,-213.31764062,0.00021917,2]
[358394172,1745057433918,-791.75,0.00021917,2]
[358394173,1745057433932,-500.0,0.00021917,2]
[358394174,1745057433946,-500.0,0.00021917,2]
[358394175,1745057433959,-500.0,0.00021917,2]
[358394176,1745057433972,-1591.81,0.00021917,2]
[358394177,1745057433986,-615.87660499,0.00021917,2]
[358394178,1745057433999,-500.0,0.00021917,2]
[358394179,1745057434013,-500.0,0.00021917,2]
[358394180,1745057434026,-500.0,0.00021917,2]
[358394181,1745057434039,-500.0,0.00021917,2]
[358394182,1745057434052,-571.72,0.00021917,2]
[358394183,1745057434066,-502.39,0.00021917,2]
[358394184,1745057434080,-616.35,0.00021917,2]
[358394185,1745057434093,-500.0,0.00021917,2]
[358394186,1745057434105,-604.73,0.00021917,2]
[358394187,1745057434120,-645.19,0.00021917,2]
[358394188,1745057434132,-500.0,0.00021917,2]
[358394189,1745057434143,-736.88,0.00021917,2]
[358394190,1745057434155,-500.0,0.00021917,2]
[358394191,1745057434166,-723.92,0.00021917,2]
[358394192,1745057434177,-500.0,0.00021917,2]
[358394193,1745057434190,-500.0,0.00021917,2]
[358394194,1745057434202,-500.0,0.00021917,2]
[358394195,1745057434214,-500.0,0.00021917,2]
[358394196,1745057434227,-500.0,0.00021917,2]
[358394197,1745057434240,-500.0,0.00021917,2]
[358394198,1745057434253,-500.0,0.00021917,2]
[358394199,1745057434266,-500.0,0.00021917,2]
[358394200,1745057434279,-500.0,0.00021917,2]
[358394201,1745057434293,-500.0,0.00021917,2]
[358394202,1745057434305,-500.0,0.00021917,2]
[358394203,1745057434319,-500.0,0.00021917,2]
[358394204,1745057434330,-500.0,0.00021917,2]
[358394205,1745057434341,-500.0,0.00021917,2]
[358394206,1745057434352,-500.0,0.00021917,2]
[358394207,1745057434363,-500.0,0.00021917,2]
[358394208,1745057434375,-649.27,0.00021917,2]
[358394209,1745057434387,-500.0,0.00021917,2]
[358394210,1745057434402,-500.0,0.00021917,2]
[358394211,1745057434415,-500.0,0.00021917,2]
[358394212,1745057434426,-500.0,0.00021917,2]
[358394213,1745057434437,-500.0,0.00021917,2]
[358394214,1745057434449,-500.0,0.00021917,2]
[358394215,1745057434461,-500.0,0.00021917,2]
[358394216,1745057434475,-500.0,0.00021917,2]
[358394217,1745057434486,-500.0,0.00021917,2]
[358394218,1745057434497,-500.0,0.00021917,2]
[358394219,1745057434509,-960.92,0.00021917,2]
[358394220,1745057434519,-500.0,0.00021917,2]
[358394221,1745057434531,-500.0,0.00021917,2]
[358394222,1745057434542,-500.0,0.00021917,2]
[358394223,1745057434554,-500.0,0.00021917,2]
[358394224,1745057434565,-500.0,0.00021917,2]
[358394225,1745057434577,-500.0,0.00021917,2]
[358394226,1745057434594,-500.0,0.00021917,2]
[358394227,1745057434607,-1115.12,0.00021917,2]
[358394228,1745057434619,-500.0,0.00021917,2]
[358394229,1745057434632,-500.0,0.00021917,2]
[358394230,1745057434644,-500.0,0.00021917,2]
[358394231,1745057434656,-500.0,0.00021917,2]
[358394232,1745057434669,-500.0,0.00021917,2]
[358394233,1745057434680,-865.09,0.00021917,2]
[358394234,1745057434692,-500.0,0.00021917,2]
[358394235,1745057434703,-500.0,0.00021917,2]
[358394236,1745057434715,-500.0,0.00021917,2]
[358394237,1745057434726,-506.33,0.00021917,2]
[358394238,1745057434738,-500.0,0.00021917,2]
[358394239,1745057434755,-500.0,0.00021917,2]
[358394240,1745057434767,-500.0,0.00021917,2]
[358394241,1745057434780,-518.91,0.00021917,2]
[358394242,1745057434793,-500.0,0.00021917,2]
[358394243,1745057434809,-500.0,0.00021917,2]
[358394244,1745057434822,-500.0,0.00021917,2]
[358394245,1745057434835,-892.4,0.00021917,2]
[358394246,1745057434848,-595.07,0.00021917,2]
[358394247,1745057434861,-500.0,0.00021917,2]
[358394248,1745057434875,-500.0,0.00021917,2]
[358394249,1745057434889,-1256.49,0.00021917,2]
[358394250,1745057434901,-500.0,0.00021917,2]
[358394251,1745057434914,-448.02851767,0.00021917,2]
[358394252,1745057434926,-1152.96,0.00021917,2]
[358394253,1745057434939,-500.0,0.00021917,2]
[358394254,1745057434951,-717.65,0.00021917,2]
[358394255,1745057434963,-500.0,0.00021917,2]
[358394256,1745057434975,-500.0,0.00021917,2]
[358394257,1745057434986,-935.22,0.00021917,2]
[358394258,1745057434998,-11673.91,0.00021917,2]
[358394259,1745057435009,-898.84,0.00021917,2]
[358394260,1745057435021,-500.0,0.00021917,2]
[358394261,1745057435033,-500.0,0.00021917,2]
[358394262,1745057435044,-500.0,0.00021917,2]
[358394263,1745057435056,-500.0,0.00021917,2]
[358394264,1745057435067,-500.0,0.00021917,2]
[358394265,1745057435078,-1670.31,0.00021917,2]
[358394266,1745057435090,-3771.26,0.00021917,2]
[358394267,1745057435101,-1298.83,0.00021917,2]
[358394268,1745057435113,-500.0,0.00021917,2]
[358394269,1745057435124,-500.0,0.00021917,2]
[358394270,1745057435134,-3289.25,0.00021917,2]
[358394271,1745057435146,-500.0,0.00021917,2]
[358394272,1745057435157,-165.90951731,0.00021917,2]
[358394273,1745057435174,-334.09048269,0.00021917,2]
[358394274,1745057435187,-898.19,0.00021917,2]
[358394275,1745057435198,-500.0,0.00021917,2]
[358394276,1745057435210,-500.0,0.00021917,2]
[358394277,1745057435221,-621.39,0.00021917,2]
[358394278,1745057435232,-500.0,0.00021917,2]
[358394279,1745057435243,-500.0,0.00021917,2]
[358394280,1745057435255,-500.0,0.00021917,2]
[358394281,1745057435265,-692.8,0.00021917,2]
[358394282,1745057435277,-500.0,0.00021917,2]
[358394283,1745057435289,-500.0,0.00021917,2]
[358394284,1745057435300,-1118.81,0.00021917,2]
[358394285,1745057435312,-500.0,0.00021917,2]
[358394286,1745057435323,-500.0,0.00021917,2]
[358394287,1745057435334,-533.25,0.00021917,2]
[358394288,1745057435345,-2501.36,0.00021917,2]
[358394289,1745057435357,-500.0,0.00021917,2]
[358394290,1745057435368,-500.0,0.00021917,2]
[358394291,1745057435379,-500.0,0.00021917,2]
[358394292,1745057435390,-500.0,0.00021917,2]
[358394293,1745057435401,-725.48,0.00021917,2]
[358394294,1745057435412,-330.28607704,0.00021917,2]
[358394302,1745057438511,-169.71392296,0.00021917,2]
[358394303,1745057438522,-500.0,0.00021917,2]
[358394304,1745057438532,-914.62,0.00021917,2]
[358394305,1745057438542,-500.0,0.00021917,2]
[358394306,1745057438552,-500.0,0.00021917,2]
[358394307,1745057438562,-507.97,0.00021917,2]
[358394308,1745057438572,-946.87,0.00021917,2]
[358394309,1745057438582,-1148.67,0.00021917,2]
[358394310,1745057438592,-500.0,0.00021917,2]
[358394311,1745057438603,-500.0,0.00021917,2]
[358394312,1745057438614,-500.0,0.00021917,2]
[358394313,1745057438626,-3812.15607704,0.00021917,2]
[358394314,1745057438743,-1094.18392296,0.00021917,2]
[358394315,1745057438753,-526.65,0.00021917,2]
[358394316,1745057438763,-500.0,0.00021917,2]
[358394317,1745057438773,-826.09,0.00021917,2]
[358394318,1745057438782,-500.0,0.00021917,2]
[358394319,1745057438792,-500.0,0.00021917,2]
[358394320,1745057438806,-3404.81,0.00021917,2]
[358394321,1745057438816,-1532.97,0.00021917,2]
[358394322,1745057438826,-500.0,0.00021917,2]
[358394323,1745057438836,-612.29,0.00021917,2]
[358394324,1745057438847,-5471.6,0.00021917,2]
[358394325,1745057438857,-500.0,0.00021917,2]
[358394326,1745057438867,-500.0,0.00021917,2]
[358394327,1745057438879,-886.86,0.00021917,2]
[358394328,1745057438889,-560.43,0.00021917,2]
[358394329,1745057438898,-799.2,0.00021917,2]
[358394330,1745057438908,-500.0,0.00021917,2]
[358394331,1745057438918,-500.0,0.00021917,2]
[358394332,1745057438927,-778.95,0.00021917,2]
[358394333,1745057438937,-500.0,0.00021917,2]
[358394334,1745057438946,-756.15,0.00021917,2]
[358394335,1745057438956,-500.0,0.00021917,2]
[358394336,1745057438966,-1739.65,0.00021917,2]
[358394337,1745057438975,-561.27,0.00021917,2]
[358394338,1745057438986,-500.0,0.00021917,2]
[358394339,1745057438996,-500.217534,0.00021917,2]
[358394340,1745057439006,-783.16528396,0.00021917,2]
[358394358,1745057443533,-5000.0,0.00021917,2]
[358394362,1745057446719,-382.748628,0.00021917,2]
[358394450,1745058086149,389.0,0.0001801,2]
[358394506,1745058477246,342.96331774,0.00018,2]
[358394507,1745058481024,1218.52212094,0.00016,2]
[358394565,1745058632562,-278.80680054,0.00019725,2]
[358394567,1745058632575,-221.19319946,0.00019725,2]
[358394569,1745058632585,-648.29567352,0.00019725,2]
[358394571,1745058632619,-846.5852697,0.00019725,2]
[358394572,1745058632631,-568.11905678,0.00019725,2]
[358394573,1745058632641,-426.09523617,0.00019817,2]
[358394574,1745058632651,-250.0,0.00020059,2]
[358394575,1745058632661,-362.954545,0.00020059,2]
[358394576,1745058632670,-166.4520318,0.00020196,2]
[358394577,1745058632680,-376.0332419,0.00020653,2]
[358394578,1745058632690,-300.0,0.00020761,2]
[358394579,1745058632699,-24900.0,0.00020762,2]
[358394580,1745058632709,-166.61976,0.00020891,2]
[358394581,1745058632719,-297.0,0.00021064,2]
[358394582,1745058632728,-17721.23702073,0.00021065,2]
[358394583,1745058632740,-976.07907818,0.00021065,2]
[358394584,1745058632761,-546.50562813,0.00021065,2]